bitfinex/quotes_SOLUSD_20251206
["timestamp","ask_amount","ask_price","bid_price","bid_amount"]
[1765061738432,0.71,132.16,132.14,16.37760927]
[1765061740540,8.3,132.17,132.15,4.04488029]
[1765061740720,0.71,132.18,132.16,8.80994492]
[1765061741527,15.86464475,132.2,132.16,9.51994492]
[1765061741835,0.71,132.19,132.16,9.51994492]
[1765061742216,0.71,132.19,132.16,12.85482521]
[1765061742416,0.71,132.19,132.16,12.14482521]
[1765061742716,0.71,132.19,132.16,8.80994492]
[1765061743014,0.71,132.19,132.16,12.14482521]
[1765061744037,0.71,132.19,132.16,20.42134017]
[1765061749833,0.71,132.19,132.17,3.33488029]
[1765061750233,0.71,132.19,132.17,10.90055367]
[1765061750440,0.71,132.19,132.17,11.62055367]
[1765061750636,8.3,132.2,132.18,8.80994492]
[1765061750637,9.01,132.2,132.18,8.80994492]
[1765061751535,9.01,132.2,132.18,9.52994492]
[1765061751845,9.01,132.2,132.18,17.09524629]
[1765061752946,9.01,132.2,132.18,16.37524629]
[1765061753643,8.3,132.2,132.18,16.37524629]
[1765061753853,9.01,132.2,132.18,16.37524629]
[1765061756737,8.3,132.2,132.18,16.37524629]
[1765061757047,9.01,132.2,132.18,16.37524629]
[1765061760451,8.3,132.2,132.18,17.02524629]
[1765061760632,8.98,132.2,132.18,17.02524629]
[1765061761154,8.98,132.2,132.18,16.37524629]
[1765061761656,8.98,132.2,132.18,17.02524629]
[1765061762041,8.98,132.2,132.18,16.37524629]
[1765061762850,8.98,132.2,132.18,17.02524629]
[1765061763559,8.3,132.2,132.18,17.02524629]
[1765061765558,0.68,132.21,132.18,20.36012658]
[1765061765749,35.21431974,132.24,132.2,8.80994492]
[1765061765750,0.68,132.22,132.2,8.80994492]
[1765061766340,8.3,132.23,132.21,0.65]
[1765061767152,8.3,132.23,132.21,3.98488029]
[1765061767547,0.68,132.24,132.21,11.54816211]
[1765061767736,8.98,132.24,132.21,11.54816211]
[1765061769567,0.68,132.24,132.21,11.54816211]
[1765061769767,8.98,132.24,132.21,11.54816211]
[1765061770175,8.3,132.24,132.22,12.79482521]
[1765061770367,8.3,132.24,132.22,24.4297055]
[1765061770677,0.68,132.25,132.22,24.4297055]
[1765061770854,0.68,132.25,132.24,8.80994492]
[1765061776161,0.68,132.25,132.24,12.14482521]
[1765061781871,0.68,132.25,132.24,19.70683367]
[1765061782986,0.7,132.26,132.24,19.70683367]
[1765061783356,0.7,132.26,132.25,3.33488029]
[1765061786971,0.7,132.26,132.24,19.70683367]
[1765061787785,0.7,132.26,132.25,3.33488029]
[1765061788479,0.7,132.26,132.25,5.20357969]
[1765061790896,0.7,132.26,132.24,16.37195338]
[1765061791072,0.7,132.26,132.24,21.57553307]
[1765061795593,0.7,132.26,132.23,0.66]
[1765061795594,8.26093734,132.26,132.23,8.80994492]
[1765061795797,8.26093734,132.26,132.22,21.51244369]
[1765061795995,0.7,132.25,132.22,21.51244369]
[1765061796376,8.3,132.24,132.21,14.01352461]
[1765061796582,0.7,132.25,132.21,14.01352461]
[1765061796891,9.0,132.24,132.21,14.01352461]
[1765061797399,9.0,132.24,132.21,21.57722777]
[1765061797604,0.7,132.23,132.21,21.57722777]
[1765061798578,0.7,132.23,132.22,5.20357969]
[1765061800510,0.7,132.23,132.21,21.57722777]
[1765061802317,0.7,132.23,132.21,14.01352461]
[1765061807096,0.7,132.23,132.21,14.67352461]
[1765061808113,0.7,132.23,132.21,14.01352461]
[1765061810493,0.7,132.23,132.21,14.68352461]
[1765061810693,0.7,132.23,132.21,14.01352461]
[1765061814819,8.26279105,132.23,132.19,46.58288036]
[1765061815019,8.26279105,132.23,132.2,14.01352461]
[1765061815210,0.71,132.22,132.2,14.01352461]
[1765061815619,9.01,132.22,132.18,33.51840173]
[1765061815923,29.759418,132.22,132.18,4.440554]
[1765061816118,0.71,132.21,132.18,4.440554]
[1765061816324,8.3,132.2,132.18,4.440554]
[1765061816795,0.68,132.19,132.18,4.440554]
[1765061830241,0.68,132.19,132.18,9.64413369]
[1765061830406,22.71608677,132.21,132.18,10.29413369]
[1765061830612,8.24339258,132.22,132.2,5.20357969]
[1765061831044,0.68,132.21,132.2,5.20357969]
[1765061832232,0.68,132.21,132.19,5.20357969]
[1765061832643,0.68,132.21,132.2,5.20357969]
[1765061850343,0.68,132.21,132.2,3.33257411]
[1765061860963,0.68,132.21,132.19,3.33257411]
[1765061861162,0.68,132.21,132.2,3.33257411]
[1765061869361,0.68,132.21,132.18,12.65595645]
[1765061869596,0.68,132.21,132.2,3.33257411]
[1765061871563,0.68,132.21,132.19,3.33257411]
[1765061880574,8.24374689,132.21,132.19,3.33257411]
[1765061880953,0.7,132.2,132.19,3.33257411]
[1765061882064,8.26374689,132.21,132.19,3.33257411]
[1765061882266,0.7,132.2,132.19,3.33257411]
[1765061883373,7.56339812,132.22,132.19,3.33257411]
[1765061883557,0.7,132.21,132.19,3.33257411]
[1765061887180,0.7,132.21,132.18,16.0485241]
[1765061894981,23.41436683,132.21,132.18,38.76289093]
[1765061895385,0.7,132.21,132.18,38.76289093]
[1765061895686,22.71436683,132.2,132.18,38.76289093]
[1765061896476,0.7,132.21,132.18,38.76289093]
[1765061896793,23.41436683,132.21,132.18,38.76289093]
[1765061897889,23.41436683,132.21,132.19,3.33257411]
[1765061899289,0.7,132.21,132.19,3.33257411]
[1765061899466,22.71436683,132.2,132.19,3.33257411]
[1765061899790,0.7,132.21,132.19,3.33257411]
[1765061900092,23.41436683,132.21,132.19,3.33257411]
[1765061900592,0.7,132.21,132.19,3.33257411]
[1765061900891,22.71436683,132.2,132.19,3.33257411]
[1765061901791,0.7,132.21,132.19,3.33257411]
[1765061902171,23.41436683,132.21,132.19,3.33257411]
[1765061902691,0.7,132.21,132.19,3.33257411]
[1765061903191,22.71436683,132.2,132.19,3.33257411]
[1765061905695,23.43436683,132.2,132.19,3.33257411]
[1765061906294,0.72,132.2,132.19,3.33257411]
[1765061906593,23.43436683,132.2,132.19,3.33257411]
[1765061907194,22.71436683,132.2,132.19,12.14251903]
[1765061907493,0.72,132.21,132.19,12.14251903]
[1765061907795,0.72,132.21,132.19,34.85516618]
[1765061908186,0.72,132.21,132.2,3.33257411]
[1765061908390,23.43264715,132.22,132.2,3.33257411]
[1765061910397,23.43264715,132.22,132.2,5.20659922]
[1765061910889,16.58277871,132.23,132.21,5.20659922]
[1765061911077,39.29370645,132.23,132.21,5.20659922]
[1765061912498,38.57370645,132.23,132.21,5.20659922]
[1765061912702,39.29370645,132.23,132.21,5.20659922]
[1765061913575,39.29370645,132.23,132.21,27.91752696]
[1765061913781,39.29370645,132.23,132.21,5.20659922]
[1765061913985,39.29370645,132.23,132.21,5.88659922]
[1765061914292,39.29370645,132.23,132.21,5.20659922]
[1765061914897,39.29370645,132.23,132.21,27.91752696]
[1765061915295,39.29370645,132.23,132.21,5.20659922]
[1765061916601,0.72,132.22,132.21,5.20659922]
[1765061921499,38.57370645,132.23,132.21,5.20659922]
[1765061921698,39.29370645,132.23,132.21,5.88659922]
[1765061921897,16.58277871,132.23,132.21,5.88659922]
[1765061922117,25.39272363,132.23,132.21,27.9158078]
[1765061922310,0.72,132.22,132.21,36.72575272]
[1765061922486,0.72,132.26,132.22,9.48994492]
[1765061922809,0.72,132.26,132.24,5.20659922]
[1765061922810,31.72405267,132.26,132.24,5.20659922]
[1765061923001,39.28492362,132.26,132.24,14.01654414]
[1765061923385,39.28492362,132.26,132.24,36.72059681]
[1765061923587,9.02,132.26,132.24,36.72059681]
[1765061924106,9.02,132.26,132.24,14.01654414]
[1765061924280,9.02,132.26,132.25,22.70405267]
[1765061925413,8.3,132.26,132.25,22.70405267]
[1765061925988,30.98457276,132.27,132.25,22.70405267]
[1765061926189,30.98457276,132.27,132.25,27.91065189]
[1765061926501,30.26457276,132.27,132.26,5.20659922]
[1765061926805,39.28212591,132.28,132.26,5.20659922]
[1765061927013,38.56212591,132.28,132.26,5.88659922]
[1765061927614,39.28212591,132.28,132.26,5.88659922]
[1765061928082,38.56212591,132.28,132.26,5.20659922]
[1765061928283,8.3,132.28,132.27,0.68]
[1765061928704,15.85976646,132.28,132.26,5.20659922]
[1765061928901,0.72,132.27,132.25,27.90893377]
[1765061929091,0.72,132.27,132.25,22.70233455]
[1765061929485,0.72,132.27,132.25,23.38233455]
[1765061929686,39.28210101,132.28,132.25,23.38233455]
[1765061929890,39.28210101,132.28,132.25,28.58893377]
[1765061932493,0.67,132.27,132.23,8.80994492]
[1765061932699,8.3,132.26,132.23,8.80994492]
[1765061933100,17.19350833,132.25,132.23,8.80994492]
[1765061933502,24.75499603,132.25,132.23,8.80994492]
[1765061933709,0.67,132.24,132.23,26.00345325]
[1765061935020,16.53200846,132.24,132.21,5.20659922]
[1765061935241,21.73860768,132.24,132.19,27.91752696]
[1765061935397,0.67,132.23,132.19,27.91752696]
[1765061935597,8.3,132.22,132.19,5.20659922]
[1765061936019,23.38264715,132.21,132.19,5.20659922]
[1765061937412,23.38264715,132.21,132.19,8.80994492]
[1765061937413,22.71264715,132.21,132.19,8.80994492]
[1765061937617,0.67,132.2,132.19,8.80994492]
[1765061938648,31.68264715,132.2,132.18,4.440554]
[1765061938998,0.67,132.19,132.18,4.440554]
[1765061940594,135.31264715,132.2,132.18,9.64715322]
[1765061940799,135.31264715,132.2,132.19,5.20659922]
[1765061941424,127.01264715,132.2,132.19,14.01654414]
[1765061943798,127.01264715,132.2,132.19,14.73654414]
[1765061944725,127.01264715,132.2,132.19,9.52994492]
[1765061945037,22.71264715,132.2,132.19,22.30141288]
[1765061945322,0.67,132.24,132.2,8.80994492]
[1765061945323,7.56236394,132.24,132.2,8.80994492]
[1765061945504,22.70748968,132.23,132.22,14.01654414]
[1765061945706,22.70748968,132.23,132.22,8.80994492]
[1765061945900,22.70748968,132.23,132.22,9.52994492]
[1765061946523,22.70748968,132.23,132.22,8.80994492]
[1765061949633,22.70748968,132.23,132.22,9.52994492]
[1765061950728,22.70748968,132.23,132.22,8.80994492]
[1765061951719,7.56163283,132.25,132.22,14.73654414]
[1765061951919,7.56163283,132.25,132.24,8.80994492]
[1765061951920,8.23163283,132.25,132.24,8.80994492]
[1765061952432,7.56163283,132.25,132.24,8.80994492]
[1765061952807,7.56163283,132.25,132.23,21.38314336]
[1765061952808,16.53163283,132.25,132.23,15.45654414]
[1765061953023,0.67,132.24,132.22,8.80994492]
[1765061953223,0.67,132.24,132.22,15.45654414]
[1765061953425,0.67,132.24,132.21,8.80994492]
[1765061953737,0.67,132.24,132.21,31.5191535]
[1765061953738,7.56258035,132.23,132.21,31.5191535]
[1765061954638,8.23258035,132.23,132.21,8.80994492]
[1765061955131,32.4101909,132.25,132.2,22.23546322]
[1765061955132,26.46702963,132.24,132.2,21.51546322]
[1765061955346,0.67,132.22,132.2,8.80994492]
[1765061956319,0.67,132.22,132.2,14.01654414]
[1765061956519,8.23314709,132.23,132.2,14.73654414]
[1765061957237,0.67,132.22,132.2,14.73654414]
[1765061959245,0.67,132.22,132.2,8.80994492]
[1765061959447,112.6,132.21,132.18,4.440554]
[1765061959617,0.67,132.2,132.18,4.440554]
[1765061960320,8.3,132.19,132.18,4.440554]
[1765061960833,9.0,132.19,132.18,4.440554]
[1765061962623,16.56486874,132.19,132.18,4.440554]
[1765061968022,112.56373382,132.21,132.18,5.090554]
[1765061968341,113.3,132.21,132.18,10.29715322]
[1765061968851,113.3,132.21,132.18,17.86245362]
[1765061969643,112.6,132.21,132.19,0.65]
[1765061970049,113.3,132.21,132.19,0.65]
[1765061971251,113.3,132.21,132.18,12.6558544]
[1765061971554,113.3,132.21,132.18,15.98928342]
[1765061972149,113.3,132.21,132.18,12.6558544]
[1765061975468,0.7,132.2,132.18,12.6558544]
[1765061978053,0.7,132.2,132.18,5.090554]
[1765061980556,8.26444474,132.2,132.18,4.440554]
[1765061981053,0.7,132.19,132.18,4.440554]
[1765061982367,0.7,132.2,132.18,4.440554]
[1765061983565,120.16392331,132.21,132.18,4.440554]
[1765061983772,120.86392331,132.21,132.18,5.090554]
[1765061987866,104.3,132.21,132.19,9.45994492]
[1765061988048,104.3,132.21,132.2,9.45994492]
[1765061989149,8.26279441,132.23,132.2,9.45994492]
[1765061989361,8.26221728,132.24,132.21,9.45994492]
[1765061992350,8.26221728,132.24,132.21,8.80994492]
[1765061992351,0.72,132.23,132.21,8.80994492]
[1765061992869,0.72,132.23,132.21,9.49994492]
[1765061994565,0.72,132.23,132.21,8.80994492]
[1765061994783,8.28266457,132.23,132.21,8.80994492]
[1765062000554,0.72,132.23,132.2,0.69]
[1765062000749,0.68,132.23,132.2,4.02342902]
[1765062001377,0.68,132.23,132.2,0.69]
[1765062002349,8.24302398,132.23,132.2,0.69]
[1765062002868,0.68,132.22,132.19,12.83337394]
[1765062003066,0.68,132.22,132.2,0.69]
[1765062003446,7.56302398,132.23,132.2,0.69]
[1765062003647,8.24302398,132.23,132.2,4.02342902]
[1765062005647,7.56302398,132.23,132.21,0.69]
[1765062005870,8.24302398,132.23,132.2,4.02342902]
[1765062006363,7.56302398,132.23,132.2,4.02342902]
[1765062006561,0.68,132.22,132.19,12.83337394]
[1765062006869,8.3,132.21,132.18,4.440554]
[1765062007075,112.6,132.21,132.18,4.440554]
[1765062007252,0.68,132.2,132.18,4.440554]
[1765062010366,8.24430396,132.2,132.18,4.440554]
[1765062010875,0.68,132.19,132.18,4.440554]
[1765062017786,0.68,132.19,132.18,13.25049892]
[1765062017962,120.16376829,132.21,132.18,13.25049892]
[1765062018164,0.68,132.2,132.18,13.25049892]
[1765062022285,120.16376829,132.21,132.18,13.25049892]
[1765062022469,120.84376829,132.21,132.18,17.29392794]
[1765062022669,120.16376829,132.21,132.18,17.29392794]
[1765062022869,0.68,132.2,132.18,17.29392794]
[1765062023270,0.68,132.2,132.18,16.58392794]
[1765062026089,120.16376829,132.21,132.19,0.71]
[1765062026387,120.84376829,132.21,132.19,0.71]
[1765062026771,120.84376829,132.21,132.18,17.29392794]
[1765062027203,120.84376829,132.21,132.19,12.85337394]
[1765062027204,104.3,132.21,132.19,12.85337394]
[1765062027685,104.3,132.21,132.2,12.85337394]
[1765062032386,104.3,132.21,132.2,14.72686267]
[1765062032592,104.3,132.21,132.2,22.29115919]
[1765062035393,5.20691775,132.25,132.21,8.80994492]
[1765062035394,104.3,132.25,132.21,8.80994492]
[1765062035584,104.98,132.25,132.22,5.20691775]
[1765062035895,104.3,132.25,132.22,0.71]
[1765062036089,0.68,132.24,132.21,14.72686267]
[1765062037074,0.68,132.24,132.21,22.29018588]
[1765062039004,104.3,132.25,132.23,8.80994492]
[1765062039305,104.98,132.25,132.23,8.80994492]
[1765062039800,104.3,132.25,132.23,14.72686267]
[1765062040381,104.98,132.25,132.23,14.72686267]
[1765062040576,104.98,132.25,132.23,21.57921687]
[1765062040903,104.3,132.25,132.23,22.28921687]
[1765062041202,104.98,132.25,132.23,22.28921687]
[1765062041888,104.3,132.25,132.23,22.28921687]
[1765062044081,104.3,132.25,132.24,21.57887113]
[1765062044296,0.68,132.26,132.25,8.80994492]
[1765062044491,8.98,132.28,132.25,14.72686267]
[1765062044701,0.68,132.28,132.25,14.72686267]
[1765062044901,111.85929508,132.29,132.25,14.72686267]
[1765062044902,0.68,132.27,132.25,14.72686267]
[1765062045682,0.68,132.27,132.26,14.01686267]
[1765062046589,0.68,132.27,132.26,8.80994492]
[1765062049908,13.44721108,132.27,132.23,5.20691775]
[1765062050098,13.44721108,132.27,132.23,16.37229828]
[1765062050291,8.95,132.26,132.23,8.80994492]
[1765062050701,0.65,132.25,132.23,8.80994492]
[1765062054092,13.50691775,132.24,132.2,7.56384318]
[1765062054293,13.50691775,132.24,132.21,8.80994492]
[1765062054492,0.65,132.23,132.21,8.80994492]
[1765062056416,0.65,132.23,132.21,16.37365991]
[1765062057615,0.65,132.23,132.21,21.58057766]
[1765062061522,0.65,132.23,132.21,16.37365991]
[1765062062024,0.65,132.23,132.2,5.20691775]
[1765062062025,112.51258363,132.23,132.2,7.56413545]
[1765062062193,117.71950138,132.23,132.2,7.56413545]
[1765062062399,9.02,132.22,132.19,16.37469255]
[1765062062611,9.02,132.22,132.18,9.64747175]
[1765062062612,14.22691775,132.22,132.18,4.440554]
[1765062062920,0.72,132.21,132.18,13.25049892]
[1765062063119,8.3,132.2,132.18,4.440554]
[1765062063603,0.72,132.19,132.18,4.440554]
[1765062077133,112.6,132.2,132.18,12.00595043]
[1765062077335,113.32,132.2,132.18,12.00595043]
[1765062079942,113.32,132.2,132.18,17.21286818]
[1765062080247,113.32,132.2,132.18,17.89286818]
[1765062080451,112.6,132.2,132.19,8.80994492]
[1765062080627,104.3,132.2,132.19,8.80994492]
[1765062086158,104.3,132.2,132.19,16.37481366]
[1765062089353,104.97,132.2,132.19,16.37481366]
[1765062090546,104.3,132.2,132.19,16.37481366]
[1765062091066,104.97,132.2,132.19,16.37481366]
[1765062091236,104.3,132.2,132.19,16.37481366]
[1765062091946,104.3,132.2,132.19,17.09481366]
[1765062092263,104.3,132.2,132.19,22.30173141]
[1765062092560,104.3,132.2,132.19,21.58173141]
[1765062093137,104.3,132.2,132.19,22.30173141]
[1765062094362,104.3,132.2,132.19,20.42783951]
[1765062096942,104.3,132.2,132.19,17.09481366]
[1765062098461,104.3,132.2,132.19,16.37481366]
[1765062098872,104.97,132.2,132.19,16.37481366]
[1765062099367,104.97,132.2,132.19,8.80994492]
[1765062102873,104.97,132.2,132.19,8.80994492]
[1765062104751,0.67,132.23,132.19,20.42783951]
[1765062104963,8.3,132.23,132.21,8.80994492]
[1765062105150,8.97,132.23,132.21,8.80994492]
[1765062106175,0.67,132.22,132.21,8.80994492]
[1765062106755,111.86220456,132.24,132.21,12.14297077]
[1765062106958,104.3,132.24,132.22,4.05302585]
[1765062107362,104.97,132.24,132.22,4.05302585]
[1765062107556,104.97,132.24,132.22,3.33302585]
[1765062108362,0.67,132.23,132.19,0.72]
[1765062108670,8.97,132.23,132.2,8.80994492]
[1765062109076,0.67,132.22,132.2,8.80994492]
[1765062113959,0.67,132.22,132.2,12.14297077]
[1765062114793,9.02,132.23,132.21,3.33302585]
[1765062115080,0.72,132.23,132.22,8.80994492]
[1765062115470,104.3,132.24,132.22,8.80994492]
[1765062115672,105.02,132.24,132.22,8.80994492]
[1765062117664,105.02,132.24,132.22,12.14297077]
[1765062118077,105.02,132.24,132.22,8.80994492]
[1765062118265,105.02,132.24,132.22,12.14297077]
[1765062120765,104.3,132.24,132.22,9.48994492]
[1765062120968,105.01,132.24,132.22,12.82297077]
[1765062121367,105.01,132.24,132.22,12.14297077]
[1765062123890,8.3,132.25,132.23,3.33302585]
[1765062124090,9.01,132.25,132.23,3.33302585]
[1765062124592,0.71,132.25,132.23,4.01302585]
[1765062124773,7.56100016,132.26,132.23,4.01302585]
[1765062124974,8.27100016,132.26,132.23,4.01302585]
[1765062125197,0.71,132.25,132.23,4.01302585]
[1765062125719,0.71,132.25,132.23,3.33302585]
[1765062127000,8.27144401,132.25,132.2,16.308864]
[1765062127188,3.33302585,132.23,132.19,8.80994492]
[1765062127577,4.04302585,132.22,132.19,8.80994492]
[1765062128093,9.01,132.21,132.19,8.80994492]
[1765062128277,3.33302585,132.2,132.18,4.440554]
[1765062128483,4.04302585,132.2,132.18,4.440554]
[1765062128701,0.71,132.19,132.18,4.440554]
[1765062128869,0.71,132.19,132.18,13.25049892]
[1765062129070,0.71,132.19,132.18,24.14896583]
[1765062129992,0.71,132.19,132.18,20.81593998]
[1765062136289,0.71,132.19,132.18,4.440554]
[1765062136982,11.60789459,132.19,132.18,4.440554]
[1765062143708,8.27486874,132.19,132.18,4.440554]
[1765062145707,11.60789459,132.19,132.18,4.440554]
[1765062145919,27.91675859,132.19,132.18,4.440554]
[1765062146806,24.58373274,132.19,132.18,4.440554]
[1765062147000,27.91675859,132.19,132.18,4.440554]
[1765062150006,24.58373274,132.19,132.18,4.440554]
[1765062150213,27.91675859,132.19,132.18,4.440554]
[1765062150814,24.58373274,132.19,132.18,4.440554]
[1765062151810,27.20997111,132.21,132.18,5.100554]
[1765062151811,7.56444345,132.2,132.18,5.100554]
[1765062151997,8.25444345,132.2,132.18,4.440554]
[1765062152202,8.25444345,132.2,132.18,5.100554]
[1765062152403,7.56444345,132.2,132.18,5.100554]
[1765062153609,8.25444345,132.2,132.18,4.440554]
[1765062154294,8.25444345,132.2,132.18,5.100554]
[1765062154606,8.25444345,132.2,132.18,4.440554]
[1765062154988,8.25444345,132.2,132.18,5.100554]
[1765062155505,8.25444345,132.2,132.18,4.440554]
[1765062155806,8.25444345,132.2,132.18,5.100554]
[1765062156215,26.47185308,132.25,132.19,9.46994492]
[1765062156397,7.56200846,132.24,132.21,8.80994492]
[1765062156727,5.89664042,132.24,132.21,9.46994492]
[1765062156917,0.69,132.23,132.2,0.66]
[1765062157294,5.89664042,132.23,132.2,0.66]
[1765062157619,13.45977088,132.23,132.2,0.66]
[1765062157926,8.25313046,132.23,132.2,0.66]
[1765062158508,16.57313046,132.23,132.2,0.66]
[1765062162121,16.57313046,132.23,132.2,5.86664042]
[1765062163822,0.69,132.25,132.22,5.20664042]
[1765062164124,0.69,132.24,132.21,14.67658534]
[1765062164326,8.25214785,132.24,132.21,9.46994492]
[1765062165119,8.25214785,132.24,132.21,14.67658534]
[1765062165492,8.25214785,132.24,132.18,23.35329397]
[1765062165493,5.20664042,132.22,132.18,4.440554]
[1765062165696,0.69,132.23,132.2,5.20664042]
[1765062165913,0.69,132.24,132.21,14.01658534]
[1765062166414,0.69,132.24,132.21,14.67658534]
[1765062166611,0.69,132.24,132.21,22.24026802]
[1765062166998,0.69,132.24,132.21,17.0336276]
[1765062167195,8.32,132.25,132.22,0.66]
[1765062167431,117.75770972,132.26,132.23,8.80994492]
[1765062167432,8.2510693,132.26,132.23,8.80994492]
[1765062168508,8.2510693,132.26,132.23,9.46994492]
[1765062169318,5.20664042,132.24,132.21,8.80994492]
[1765062169524,5.20664042,132.22,132.2,8.80994492]
[1765062169724,5.20664042,132.21,132.18,4.440554]
[1765062169919,5.20664042,132.19,132.18,4.440554]
[1765062170309,5.87664042,132.19,132.18,4.440554]
[1765062171202,13.44150916,132.19,132.18,4.440554]
[1765062177842,16.308864,132.15,132.13,0.1]
[1765062178031,14.24664042,132.14,132.13,0.1]
[1765062178640,26.48906379,132.13,132.07,8.80994492]
[1765062178931,26.48906379,132.13,132.08,0.67]
[1765062178932,5.20664042,132.1,132.08,0.67]
[1765062179311,5.20664042,132.1,132.05,21.51550442]
[1765062179312,14.24664042,132.09,132.05,8.24277586]
[1765062179623,14.24664042,132.09,132.06,8.24230225]
[1765062179925,8.32,132.09,132.07,8.80994492]
[1765062180128,8.34,132.12,132.07,17.0513567]
[1765062180332,8.34,132.12,132.08,5.87664042]
[1765062180521,8.34,132.12,132.08,0.67]
[1765062180722,8.34,132.12,132.07,21.58799712]
[1765062180723,8.34,132.12,132.09,0.67]
[1765062180938,13.54664042,132.12,132.09,0.67]
[1765062181113,5.20664042,132.11,132.09,0.67]
[1765062181314,5.20664042,132.1,132.06,8.80994492]
[1765062181515,5.20664042,132.08,132.06,8.80994492]
[1765062181717,8.34,132.09,132.05,8.80994492]
[1765062181718,5.20664042,132.07,132.05,8.80994492]
[1765062181924,0.72,132.08,132.05,0.67]
[1765062182132,5.20664042,132.11,132.06,9.47994492]
[1765062182335,8.34,132.12,132.08,8.80994492]
[1765062182514,5.20664042,132.14,132.1,8.80994492]
[1765062182932,5.20664042,132.14,132.11,0.67]
[1765062183129,9.06,132.15,132.12,8.80994492]
[1765062183130,5.20664042,132.15,132.12,8.80994492]
[1765062183332,5.92664042,132.14,132.1,9.47994492]
[1765062183641,0.72,132.14,132.08,0.67]
[1765062183840,5.20664042,132.12,132.08,0.67]
[1765062184133,13.54664042,132.12,132.08,0.67]
[1765062184326,14.26664042,132.12,132.08,9.47994492]
[1765062184732,21.83602325,132.12,132.08,9.47994492]
[1765062185543,16.62938283,132.12,132.08,14.68658534]
[1765062186415,16.62938283,132.12,132.05,24.648864]
[1765062186416,5.20664042,132.1,132.06,0.67]
[1765062186615,7.56970645,132.11,132.08,5.20664042]
[1765062186817,8.28970645,132.11,132.08,5.20664042]
[1765062187136,8.28970645,132.11,132.08,5.87664042]
[1765062187534,8.34,132.12,132.09,9.47994492]
[1765062188324,15.90891093,132.12,132.09,9.47994492]
[1765062189041,0.72,132.11,132.09,8.80994492]
[1765062189243,16.62891093,132.12,132.09,8.80994492]
[1765062189743,16.62891093,132.12,132.09,9.47994492]
[1765062191032,5.92664042,132.11,132.06,5.87664042]
[1765062191346,5.20664042,132.08,132.04,9.47994492]
[1765062191647,14.26664042,132.08,132.04,9.47994492]
[1765062192025,13.54664042,132.08,132.04,9.47994492]
[1765062192444,14.26664042,132.08,132.04,9.47994492]
[1765062192648,7.57174225,132.07,132.04,9.47994492]
[1765062193850,7.57174225,132.07,132.01,24.648864]
[1765062193851,0.72,132.06,132.03,8.80994492]
[1765062194157,4.81931788,132.05,132.02,0.67]
[1765062194358,4.81931788,132.04,132.0,8.80994492]
[1765062194650,8.34,132.06,132.02,13.6292628]
[1765062194824,7.57288905,132.05,132.02,8.80994492]
[1765062195025,7.57288905,132.05,132.02,9.47994492]
[1765062195224,7.57288905,132.05,131.97,74.17572826]
[1765062195225,8.80994492,132.02,131.93,0.67]
[1765062195431,4.81931788,131.96,131.93,0.67]
[1765062195649,8.36,131.97,131.93,0.67]
[1765062195863,4.81931788,131.96,131.93,0.67]
[1765062196219,4.81931788,131.97,131.93,8.24955107]
[1765062196523,4.81931788,131.97,131.93,7.74955107]
[1765062197051,5.53931788,131.96,131.92,7.58022892]
[1765062197244,5.53931788,131.96,131.93,8.80994492]
[1765062197748,4.81931788,131.96,131.92,8.80994492]
[1765062198644,4.81931788,131.96,131.93,0.48]
[1765062198830,4.81931788,131.95,131.92,9.28994492]
[1765062199880,4.81931788,131.94,131.92,8.80994492]
[1765062200663,4.81931788,131.95,131.92,8.80994492]
[1765062200833,7.58035172,131.92,131.89,8.80994492]
[1765062201155,104.3,132.0,131.91,13.6292628]
[1765062201329,0.68,131.99,131.94,8.80994492]
[1765062201530,0.68,131.99,131.92,8.80994492]
[1765062201531,4.81931788,131.98,131.92,8.80994492]
[1765062201949,4.81931788,131.98,131.93,0.48]
[1765062202332,7.57747973,131.97,131.93,0.48]
[1765062202838,4.81931788,131.94,131.9,24.668864]
[1765062203026,4.81931788,131.93,131.9,8.80994492]